fUSD/lending_fUSD_20260506
["ID","MTS","AMOUNT","RATE_DAILY","PERIOD"]
[421675027,1778038251000,-200.0,0.00039686,30]
[421675033,1778038251000,-7681.20591386,0.00039686,30]
[421675032,1778038251000,-557.5788265,0.00039686,30]
[421675031,1778038251000,-1148.61238259,0.00039686,30]
[421675030,1778038251000,-200.0,0.00039686,30]
[421675034,1778038251000,-168.3888056,0.00039686,30]
[421675035,1778038251000,-579.88197956,0.00039686,30]
[421675036,1778038251000,-200.0,0.00039686,30]
[421675046,1778038251000,-8260.13072239,0.00039686,30]
[421675043,1778038251000,-1191.11104075,0.00039686,30]
[421675042,1778038251000,-174.61919141,0.00039686,30]
[421675044,1778038251000,-601.3376128,0.00039686,30]
[421675045,1778038251000,-200.0,0.00039686,30]
[421675048,1778038251000,-151.0,0.00039686,30]
[421675052,1778038251000,-623.58710448,0.00039686,30]
[421675049,1778038251000,-500.0,0.00039686,30]
[421675050,1778038251000,-181.08010149,0.00039686,30]
[421675047,1778038251000,-599.60298507,0.00039686,30]
[421675051,1778038251000,-1235.18214925,0.00039686,30]
[421675053,1778038251000,-200.0,0.00039686,30]
[421675024,1778038251000,-537.6845,0.00039686,30]
[421675041,1778038251000,-500.0,0.00039686,30]
[421675023,1778038251000,-1107.63007,0.00039686,30]
[421675017,1778038251000,-156.587,0.00039686,30]
[421675026,1778038251000,-162.380719,0.00039686,30]
[421675005,1778038251000,-1030.0,0.00039686,30]
[421674999,1778038251000,-200.0,0.00039686,30]
[421675001,1778038251000,-1519.73247978,0.00039686,30]
[421675000,1778038251000,-520.0,0.00039686,30]
[421675002,1778038251000,-6888.0,0.00039686,30]
[421675004,1778038251000,-151.0,0.00039686,30]
[421674998,1778038251000,-151.0,0.00039686,30]
[421675003,1778038251000,-500.0,0.00039686,30]
[421675007,1778038251000,-200.0,0.00039686,30]
[421675016,1778038251000,-518.5,0.00039686,30]
[421675006,1778038251000,-500.0,0.00039686,30]
[421675008,1778038251000,-151.0,0.00039686,30]
[421675022,1778038251000,-151.0,0.00039686,30]
[421675009,1778038251000,-200.0,0.00039686,30]
[421675013,1778038251000,-500.0,0.00039686,30]
[421675010,1778038251000,-7142.856,0.00039686,30]
[421675012,1778038251000,-151.0,0.00039686,30]
[421675015,1778038251000,-200.0,0.00039686,30]
[421675011,1778038251000,-539.24,0.00039686,30]
[421675014,1778038251000,-1068.11,0.00039686,30]
[421675019,1778038251000,-559.19188,0.00039686,30]
[421675021,1778038251000,-7407.141672,0.00039686,30]
[421675020,1778038251000,-500.0,0.00039686,30]
[421675018,1778038251000,-200.0,0.00039686,30]
[421675028,1778038251000,-500.0,0.00039686,30]
[421675025,1778038251000,-200.0,0.00039686,30]
[421675054,1778038251000,-200.0,0.00039686,30]
[421675055,1778038251000,-8565.75555911,0.00039686,30]
[421675038,1778038251000,-7965.41053268,0.00039686,30]
[421675064,1778038251000,-8882.6885148,0.00039686,30]
[421675080,1778038251000,-200.0,0.00039686,30]
[421675087,1778038251000,-151.0,0.00039686,30]
[421675090,1778038251000,-151.0,0.00039686,30]
[421675091,1778038251000,-220.0,0.00039686,30]
[421675097,1778038251000,-220.0,0.00039686,30]
[421675096,1778038251000,-151.0,0.00039686,30]
[421675100,1778038251000,-151.0,0.00039686,30]
[421675101,1778038251000,-152.0,0.00039686,30]
[421675099,1778038251000,-151.0,0.00039686,30]
[421675098,1778038251000,-151.0,0.00039686,30]
[421675092,1778038251000,-151.0,0.00039686,30]
[421675095,1778038251000,-500.0,0.00039686,30]
[421675093,1778038251000,-151.0,0.00039686,30]
[421675102,1778038251000,-500.0,0.00039686,30]
[421675112,1778038251000,-162.380719,0.00039686,30]
[421675103,1778038251000,-151.0,0.00039686,30]
[421675104,1778038251000,-220.0,0.00039686,30]
[421675113,1778038251000,-151.0,0.00039686,30]
[421675105,1778038251000,-156.587,0.00039686,30]
[421675107,1778038251000,-151.0,0.00039686,30]
[421675109,1778038251000,-500.0,0.00039686,30]
[421675111,1778038251000,-220.0,0.00039686,30]
[421675106,1778038251000,-151.0,0.00039686,30]
[421675108,1778038251000,-152.0,0.00039686,30]
[421675110,1778038251000,-151.0,0.00039686,30]
[421675114,1778038251000,-151.0,0.00039686,30]
[421675059,1778038251000,-187.78006525,0.00039686,30]
[421675083,1778038251000,-151.0,0.00039686,30]
[421675088,1778038251000,-200.0,0.00039686,30]
[421675094,1778038251000,-200.0,0.00039686,30]
[421675082,1778038251000,-151.0,0.00039686,30]
[421675081,1778038251000,-500.0,0.00039686,30]
[421675057,1778038251000,-151.0,0.00039686,30]
[421675060,1778038251000,-1280.88388878,0.00039686,30]
[421675062,1778038251000,-200.0,0.00039686,30]
[421675061,1778038251000,-646.65982734,0.00039686,30]
[421675058,1778038251000,-500.0,0.00039686,30]
[421675063,1778038251000,-213.09512539,0.00039686,30]
[421675066,1778038251000,-151.0,0.00039686,30]
[421675070,1778038251000,-200.0,0.00039686,30]
[421675071,1778038251000,-9211.34798985,0.00039686,30]
[421675073,1778038251000,-151.0,0.00039686,30]
[421675076,1778038251000,-200.0,0.00039686,30]
[421675074,1778038251000,-695.39793187,0.00039686,30]
[421675072,1778038251000,-500.0,0.00039686,30]
[421675056,1778038251000,-184.23160572,0.00039686,30]
[421675075,1778038251000,-151.0,0.00039686,30]
[421675086,1778038251000,-151.0,0.00039686,30]
[421675084,1778038251000,-200.0,0.00039686,30]
[421675089,1778038251000,-500.0,0.00039686,30]
[421675078,1778038251000,-151.0,0.00039686,30]
[421675079,1778038251000,-151.0,0.00039686,30]
[421675085,1778038251000,-500.0,0.00039686,30]
[421675068,1778038251000,-202.81481227,0.00039686,30]
[421675069,1778038251000,-670.58624095,0.00039686,30]
[421675067,1778038251000,-1328.27659266,0.00039686,30]
[421675065,1778038251000,-500.0,0.00039686,30]
[421675077,1778038251000,-500.0,0.00039686,30]
[421675155,1778038252000,-500.0,0.00039686,30]
[421675164,1778038252000,-1000.0,0.00039686,30]
[421675165,1778038252000,-518.5,0.00039686,30]
[421675163,1778038252000,-500.0,0.00039686,30]
[421675153,1778038252000,-1000.0,0.00039686,30]
[421675151,1778038252000,-500.0,0.00039686,30]
[421675149,1778038252000,-160.0,0.00039686,30]
[421675147,1778038252000,-500.0,0.00039686,30]
[421675145,1778038252000,-500.0,0.00039686,30]
[421675152,1778038252000,-160.0,0.00039686,30]
[421675146,1778038252000,-1403.17988817,0.00039686,30]
[421675148,1778038252000,-500.0,0.00039686,30]
[421675162,1778038252000,-160.0,0.00039686,30]
[421675159,1778038252000,-505.11590899,0.00039686,30]
[421675160,1778038252000,-710.45630967,0.00039686,30]
[421675158,1778038252000,-500.0,0.00039686,30]
[421675161,1778038252000,-500.0,0.00039686,30]
[421675154,1778038252000,-500.0,0.00039686,30]
[421675174,1778038252000,-557.5788265,0.00039686,30]
[421675157,1778038252000,-1000.0,0.00039686,30]
[421675167,1778038252000,-500.0,0.00039686,30]
[421675168,1778038252000,-1000.0,0.00039686,30]
[421675169,1778038252000,-170.0,0.00039686,30]
[421675166,1778038252000,-167.20898263,0.00039686,30]
[421675170,1778038252000,-537.6845,0.00039686,30]
[421675177,1778038252000,-578.20924308,0.00039686,30]
[421675150,1778038252000,-500.0,0.00039686,30]
[421675156,1778038252000,-160.0,0.00039686,30]
[421675144,1778038252000,-500.0,0.00039686,30]
[421675116,1778038252000,-151.0,0.00039686,30]
[421675142,1778038252000,-500.0,0.00039686,30]
[421675172,1778038252000,-1000.0,0.00039686,30]
[421675117,1778038252000,-500.0,0.00039686,30]
[421675125,1778038252000,-352.17591358,0.00039686,30]
[421675120,1778038252000,-156.7910884,0.00039686,30]
[421675121,1778038252000,-151.0,0.00039686,30]
[421675123,1778038252000,-151.0,0.00039686,30]
[421675115,1778038252000,-152.0,0.00039686,30]
[421675118,1778038252000,-220.0,0.00039686,30]
[421675124,1778038252000,-500.0,0.00039686,30]
[421675122,1778038252000,-159.27767388,0.00039686,30]
[421675119,1778038252000,-168.3888056,0.00039686,30]
[421675126,1778038252000,-174.61919141,0.00039686,30]
[421675137,1778038252000,-691.39774486,0.00039686,30]
[421675128,1778038252000,-151.0,0.00039686,30]
[421675127,1778038252000,-620.0,0.00039686,30]
[421675129,1778038252000,-500.0,0.00039686,30]
[421675138,1778038252000,-201.93286098,0.00039686,30]
[421675133,1778038252000,-500.0,0.00039686,30]
[421675132,1778038252000,-151.0,0.00039686,30]
[421675134,1778038252000,-187.78006525,0.00039686,30]
[421675136,1778038252000,-194.72792766,0.00039686,30]
[421675131,1778038252000,-642.94,0.00039686,30]
[421675135,1778038252000,-666.72878,0.00039686,30]
[421675130,1778038252000,-181.08010149,0.00039686,30]
[421675139,1778038252000,-716.97946142,0.00039686,30]
[421675140,1778038252000,-500.0,0.00039686,30]
[421675143,1778038252000,-500.0,0.00039686,30]
[421675141,1778038252000,-500.0,0.00039686,30]
[421675176,1778038252000,-182.81273,0.00039686,30]
[421675220,1778038252000,-200.0,0.00039687,2]
[421675175,1778038252000,-977.06578461,0.00039686,30]
[421675206,1778038252000,-269.917619,0.00039686,30]
[421675203,1778038252000,-251.0,0.00039686,30]
[421675209,1778038252000,-162.380719,0.00039686,30]
[421675207,1778038252000,-151.0,0.00039686,30]
[421675213,1778038252000,-187.78006525,0.00039686,30]
[421675208,1778038252000,-156.587,0.00039686,30]
[421675211,1778038252000,-174.61919141,0.00039686,30]
[421675212,1778038252000,-181.08010149,0.00039686,30]
[421675217,1778038252000,-150.0,0.00039686,120]
[421675216,1778038252000,-150.0,0.00039686,120]
[421675218,1778038252000,-206.58673802,0.00039686,120]
[421675219,1778038252000,-200.0,0.00039687,2]
[421675222,1778038252000,-202470.5209,0.0003969,30]
[421675221,1778038252000,-200.0,0.00039687,2]
[421675223,1778038252000,-2851.8,0.00039699,60]
[421675235,1778038252000,-528.06103919,0.00039726,15]
[421675225,1778038252000,-528.06103919,0.00039726,15]
[421675224,1778038252000,-4327.0738,0.00039721,2]
[421675226,1778038252000,-528.06103919,0.00039726,15]
[421675227,1778038252000,-528.06103919,0.00039726,15]
[421675228,1778038252000,-528.06103919,0.00039726,15]
[421675233,1778038252000,-528.06103919,0.00039726,15]
[421675230,1778038252000,-528.06103919,0.00039726,15]
[421675234,1778038252000,-528.06103919,0.00039726,15]
[421675171,1778038252000,-500.0,0.00039686,30]
[421675229,1778038252000,-528.06103919,0.00039726,15]
[421675232,1778038252000,-528.06103919,0.00039726,15]
[421675210,1778038252000,-168.3888056,0.00039686,30]
[421675205,1778038252000,-260.287,0.00039686,30]
[421675231,1778038252000,-528.06103919,0.00039726,15]
[421675214,1778038252000,-194.72792766,0.00039686,30]
[421675215,1778038252000,-201.932861,0.00039686,30]
[421675173,1778038252000,-176.29,0.00039686,30]
[421675189,1778038252000,-168.3888056,0.00039686,30]
[421675180,1778038252000,-151.0,0.00039686,30]
[421675182,1778038252000,-156.587,0.00039686,30]
[421675178,1778038252000,-151.0,0.00039686,30]
[421675181,1778038252000,-599.60298507,0.00039686,30]
[421675184,1778038252000,-151.0,0.00039686,30]
[421675183,1778038252000,-196.59114265,0.00039686,30]
[421675185,1778038252000,-621.78829552,0.00039686,30]
[421675188,1778038252000,-662.59416683,0.00039686,30]
[421675186,1778038252000,-162.380719,0.00039686,30]
[421675187,1778038252000,-203.86501493,0.00039686,30]
[421675190,1778038252000,-151.0,0.00039686,30]
[421675179,1778038252000,-189.57680101,0.00039686,30]
[421675197,1778038252000,-250.6297701,0.00039686,30]
[421675192,1778038252000,-151.0,0.00039686,30]
[421675198,1778038252000,-162.380719,0.00039686,30]
[421675199,1778038252000,-151.0,0.00039686,30]
[421675200,1778038252000,-168.38880561,0.00039686,30]
[421675195,1778038252000,-217.16613421,0.00039686,30]
[421675204,1778038252000,-156.22210459,0.00039686,30]
[421675196,1778038252000,-151.0,0.00039686,30]
[421675202,1778038252000,-151.0,0.00039686,30]
[421675191,1778038252000,-211.40802048,0.00039686,30]
[421675201,1778038252000,-151.0,0.00039686,30]
[421675193,1778038252000,-174.61919141,0.00039686,30]
[421675194,1778038252000,-156.587,0.00039686,30]
[421675272,1778038253000,-528.06103919,0.00039726,15]
[421675270,1778038253000,-528.06103919,0.00039726,15]
[421675273,1778038253000,-528.06103919,0.00039726,15]
[421675271,1778038253000,-528.06103919,0.00039726,15]
[421675268,1778038253000,-528.06103919,0.00039726,15]
[421675274,1778038253000,-528.06103919,0.00039726,15]
[421675265,1778038253000,-528.06103919,0.00039726,15]
[421675267,1778038253000,-528.06103919,0.00039726,15]
[421675276,1778038253000,-152.14169922,0.00039736,120]
[421675264,1778038253000,-528.06103919,0.00039726,15]
[421675269,1778038253000,-528.06103919,0.00039726,15]
[421675288,1778038253000,-777.8,0.00039792,120]
[421675280,1778038253000,-10036.02933264,0.00039747,2]
[421675277,1778038253000,-156.40820005,0.00039736,120]
[421675278,1778038253000,-166.63138487,0.00039736,120]
[421675279,1778038253000,-156.40820006,0.00039736,120]
[421675281,1778038253000,-181.0,0.0003975,120]
[421675282,1778038253000,-150.0,0.0003975,120]
[421675284,1778038253000,-150.0,0.00039751,120]
[421675283,1778038253000,-181.0,0.00039751,120]
[421675285,1778038253000,-181.0,0.00039751,120]
[421675286,1778038253000,-150.0,0.00039751,120]
[421675287,1778038253000,-508.0,0.00039755,30]
[421675266,1778038253000,-528.06103919,0.00039726,15]
[421675275,1778038253000,-251.38704228,0.00039729,2]
[421675263,1778038253000,-528.06103919,0.00039726,15]
[421675248,1778038253000,-528.06103919,0.00039726,15]
[421675260,1778038253000,-528.06103919,0.00039726,15]
[421675289,1778038253000,-10000.0,0.00039798,2]
[421675236,1778038253000,-528.06103919,0.00039726,15]
[421675237,1778038253000,-528.06103919,0.00039726,15]
[421675238,1778038253000,-528.06103919,0.00039726,15]
[421675239,1778038253000,-528.06103919,0.00039726,15]
[421675240,1778038253000,-528.06103919,0.00039726,15]
[421675243,1778038253000,-528.06103919,0.00039726,15]
[421675241,1778038253000,-528.06103919,0.00039726,15]
[421675244,1778038253000,-528.06103919,0.00039726,15]
[421675246,1778038253000,-528.06103919,0.00039726,15]
[421675242,1778038253000,-528.06103919,0.00039726,15]
[421675245,1778038253000,-528.06103919,0.00039726,15]
[421675249,1778038253000,-528.06103919,0.00039726,15]
[421675247,1778038253000,-528.06103919,0.00039726,15]
[421675250,1778038253000,-528.06103919,0.00039726,15]
[421675251,1778038253000,-528.06103919,0.00039726,15]
[421675252,1778038253000,-528.06103919,0.00039726,15]
[421675253,1778038253000,-528.06103919,0.00039726,15]
[421675254,1778038253000,-528.06103919,0.00039726,15]
[421675257,1778038253000,-528.06103919,0.00039726,15]
[421675255,1778038253000,-528.06103919,0.00039726,15]
[421675256,1778038253000,-528.06103919,0.00039726,15]
[421675259,1778038253000,-528.06103919,0.00039726,15]
[421675258,1778038253000,-528.06103919,0.00039726,15]
[421675262,1778038253000,-528.06103919,0.00039726,15]
[421675261,1778038253000,-528.06103919,0.00039726,15]
[421675290,1778038253000,-2005.9555727,0.00039819,30]
[421675347,1778038253000,-156.40820005,0.0004001,120]
[421675291,1778038253000,-500.0,0.0003982,30]
[421675322,1778038253000,-429.54,0.0004,30]
[421675327,1778038253000,-350.12,0.0004,120]
[421675321,1778038253000,-152.0,0.0004,120]
[421675324,1778038253000,-150.0,0.0004,120]
[421675325,1778038253000,-342.52,0.0004,120]
[421675323,1778038253000,-181.0,0.0004,120]
[421675329,1778038253000,-384.77,0.0004,120]
[421675328,1778038253000,-730.91,0.0004,120]
[421675331,1778038253000,-1718.5426497,0.0004,120]
[421675334,1778038253000,-450.0,0.0004,30]
[421675330,1778038253000,-174.6565146,0.0004,120]
[421675333,1778038253000,-10507.81387752,0.0004,120]
[421675332,1778038253000,-605335.09210259,0.0004,120]
[421675336,1778038253000,-5321.04932443,0.0004,120]
[421675343,1778038253000,-483.227327,0.0004,30]
[421675346,1778038253000,-152.14169922,0.0004001,120]
[421675341,1778038253000,-151.0,0.0004,30]
[421675338,1778038253000,-11996.04536972,0.0004,4]
[421675337,1778038253000,-1197.23113225,0.0004,120]
[421675335,1778038253000,-1777.0864347,0.0004,120]
[421675339,1778038253000,-151.0,0.0004,30]
[421675340,1778038253000,-151.0,0.0004,30]
[421675345,1778038253000,-156.40820005,0.0004001,120]
[421675342,1778038253000,-483.227327,0.0004,30]
[421675344,1778038253000,-152.14169922,0.0004001,120]
[421675320,1778038253000,-151.0,0.0004,120]
[421675316,1778038253000,-4327.0738,0.00039995,2]
[421675293,1778038253000,-500.0,0.00039823,30]
[421675319,1778038253000,-9096.00213455,0.00039999,15]
[421675326,1778038253000,-203.15,0.0004,120]
[421675292,1778038253000,-312.86,0.00039821,30]
[421675302,1778038253000,-75297.03981371,0.0003997,2]
[421675295,1778038253000,-2377.69962328,0.00039867,120]
[421675294,1778038253000,-4327.0738,0.00039858,2]
[421675298,1778038253000,-4000.0,0.000399,60]
[421675296,1778038253000,-777.8,0.00039892,120]
[421675297,1778038253000,-1934.38338737,0.00039899,30]
[421675300,1778038253000,-164.0,0.00039915,11]
[421675301,1778038253000,-165.0976331,0.00039953,5]
[421675304,1778038253000,-151.0,0.00039981,30]
[421675314,1778038253000,-777.8,0.00039992,120]
[421675299,1778038253000,-400.0,0.000399,14]
[421675306,1778038253000,-25000.0,0.00039981,15]
[421675318,1778038253000,-25000.0,0.00039999,15]
[421675303,1778038253000,-151.0,0.00039981,30]
[421675317,1778038253000,-97573.20140674,0.00039995,120]
[421675315,1778038253000,-152.309585,0.00039995,20]
[421675311,1778038253000,-151.0,0.0003999,30]
[421675308,1778038253000,-151.0,0.0003999,30]
[421675305,1778038253000,-151.0,0.00039981,30]
[421675307,1778038253000,-1732.99,0.00039988,120]
[421675309,1778038253000,-151.0,0.0003999,30]
[421675310,1778038253000,-151.0,0.0003999,30]
[421675313,1778038253000,-25000.0,0.0003999,15]
[421675312,1778038253000,-151.0,0.0003999,30]
[421675394,1778038254000,-361.72528501,0.00040349,14]
[421675389,1778038254000,-599.837577,0.00040304,30]
[421675391,1778038254000,-599.837577,0.00040304,30]
[421675390,1778038254000,-599.837577,0.00040304,30]
[421675382,1778038254000,-318.019443,0.00040304,30]
[421675386,1778038254000,-318.019443,0.00040304,30]
[421675384,1778038254000,-318.019443,0.00040304,30]
[421675385,1778038254000,-904.544289,0.00040304,30]
[421675380,1778038254000,-318.019443,0.00040304,30]
[421675383,1778038254000,-904.544289,0.00040304,30]
[421675400,1778038254000,-200.0,0.00040485,2]
[421675381,1778038254000,-904.544289,0.00040304,30]
[421675388,1778038254000,-599.837577,0.00040304,30]
[421675410,1778038254000,-152.14169922,0.00040558,120]
[421675399,1778038254000,-200.0,0.00040485,2]
[421675396,1778038254000,-2050.34227714,0.0004047,30]
[421675392,1778038254000,-1247.3476,0.00040331,4]
[421675393,1778038254000,-1099.5765,0.00040331,4]
[421675398,1778038254000,-2050.34227714,0.0004047,30]
[421675397,1778038254000,-2050.34227714,0.0004047,30]
[421675403,1778038254000,-11401.42,0.000405,120]
[421675401,1778038254000,-350.0,0.00040488,4]
[421675404,1778038254000,-4027.6103886,0.000405,120]
[421675402,1778038254000,-777.8,0.00040492,120]
[421675405,1778038254000,-5703.9213273,0.000405,120]
[421675387,1778038254000,-904.544289,0.00040304,30]
[421675407,1778038254000,-150.0,0.000405,120]
[421675395,1778038254000,-777.8,0.00040392,120]
[421675377,1778038254000,-328.357965,0.00040304,30]
[421675373,1778038254000,-777.8,0.00040292,120]
[421675379,1778038254000,-328.357965,0.00040304,30]
[421675359,1778038254000,-181.0,0.0004025,120]
[421675349,1778038254000,-200.0,0.00040084,2]
[421675360,1778038254000,-150.0,0.0004025,120]
[421675412,1778038254000,-153.56,0.0004059,120]
[421675352,1778038254000,-777.8,0.00040092,120]
[421675351,1778038254000,-200.0,0.00040084,2]
[421675350,1778038254000,-200.0,0.00040084,2]
[421675354,1778038254000,-4327.0738,0.00040132,2]
[421675355,1778038254000,-384.0,0.00040164,2]
[421675353,1778038254000,-163.0,0.0004013,11]
[421675356,1778038254000,-1865.36488657,0.00040191,30]
[421675358,1778038254000,-150.0,0.00040223,2]
[421675357,1778038254000,-777.8,0.00040192,120]
[421675376,1778038254000,-328.357965,0.00040304,30]
[421675362,1778038254000,-4327.0742,0.00040269,2]
[421675372,1778038254000,-3932.42,0.0004029,60]
[421675361,1778038254000,-1942.3715,0.00040269,2]
[421675368,1778038254000,-352.02,0.0004029,60]
[421675366,1778038254000,-151.0,0.0004029,30]
[421675365,1778038254000,-151.0,0.0004029,30]
[421675363,1778038254000,-152.14169922,0.00040284,120]
[421675364,1778038254000,-156.40820005,0.00040284,120]
[421675367,1778038254000,-151.0,0.0004029,30]
[421675370,1778038254000,-26073.07,0.0004029,60]
[421675371,1778038254000,-549.23,0.0004029,60]
[421675369,1778038254000,-2673.23,0.0004029,60]
[421675375,1778038254000,-92606.1149,0.00040304,2]
[421675378,1778038254000,-328.357965,0.00040304,30]
[421675374,1778038254000,-163.0,0.00040293,11]
[421675348,1778038254000,-174.84,0.0004006,120]
[421675408,1778038254000,-2305.0,0.00040535,11]
[421675411,1778038254000,-156.40820005,0.00040558,120]
[421675447,1778038254000,-572.0,0.00040822,60]
[421675445,1778038254000,-209.8895384,0.00040822,60]
[421675441,1778038254000,-500.0,0.00040822,60]
[421675446,1778038254000,-572.0,0.00040822,60]
[421675444,1778038254000,-500.0,0.00040822,60]
[421675451,1778038254000,-572.0,0.00040822,60]
[421675449,1778038254000,-500.0,0.00040822,60]
[421675450,1778038254000,-500.0,0.00040822,60]
[421675454,1778038254000,-500.0,0.00040822,60]
[421675452,1778038254000,-500.0,0.00040822,60]
[421675460,1778038254000,-366.99161194,0.00040822,60]
[421675455,1778038254000,-500.0,0.00040822,60]
[421675453,1778038254000,-572.0,0.00040822,60]
[421675459,1778038254000,-500.0,0.00040822,60]
[421675456,1778038254000,-572.0,0.00040822,60]
[421675457,1778038254000,-500.0,0.00040822,60]
[421675458,1778038254000,-500.0,0.00040822,60]
[421675462,1778038254000,-150.0,0.00040822,60]
[421675464,1778038254000,-500.0,0.00040822,60]
[421675465,1778038254000,-150.0,0.00040822,2]
[421675461,1778038254000,-572.0,0.00040822,60]
[421675463,1778038254000,-500.0,0.00040822,60]
[421675466,1778038254000,-572.0,0.00040822,60]
[421675469,1778038254000,-500.0,0.00040822,60]
[421675406,1778038254000,-181.0,0.000405,120]
[421675470,1778038254000,-572.0,0.00040822,60]
[421675468,1778038254000,-500.0,0.00040822,60]
[421675443,1778038254000,-500.0,0.00040822,60]
[421675442,1778038254000,-500.0,0.00040822,60]
[421675467,1778038254000,-150.0,0.00040822,60]
[421675437,1778038254000,-500.0,0.00040822,60]
[421675440,1778038254000,-634.45337951,0.00040822,60]
[421675409,1778038254000,-573.36,0.00040544,120]
[421675424,1778038254000,-190.07893127,0.0004075,120]
[421675425,1778038254000,-777.8,0.00040792,120]
[421675413,1778038254000,-184.59,0.0004059,120]
[421675416,1778038254000,-450.0,0.000406,60]
[421675415,1778038254000,-160.0,0.000406,75]
[421675422,1778038254000,-176.3,0.0004075,120]
[421675417,1778038254000,-1426.61977397,0.00040665,120]
[421675419,1778038254000,-350.0,0.00040695,5]
[421675420,1778038254000,-152.0,0.000407,120]
[421675418,1778038254000,-777.8,0.00040692,120]
[421675423,1778038254000,-181.0,0.0004075,120]
[421675421,1778038254000,-5276.80668809,0.000407,6]
[421675414,1778038254000,-777.8,0.00040592,120]
[421675427,1778038254000,-2467.771,0.000408,60]
[421675426,1778038254000,-2467.771,0.000408,60]
[421675438,1778038254000,-500.0,0.00040822,60]
[421675435,1778038254000,-500.0,0.00040822,60]
[421675431,1778038254000,-700.0,0.0004081,21]
[421675432,1778038254000,-500.0,0.00040822,60]
[421675448,1778038254000,-500.0,0.00040822,60]
[421675434,1778038254000,-500.0,0.00040822,60]
[421675430,1778038254000,-500.0,0.0004081,21]
[421675433,1778038254000,-500.0,0.00040822,60]
[421675439,1778038254000,-500.0,0.00040822,60]
[421675429,1778038254000,-508.60317527,0.0004081,21]
[421675428,1778038254000,-2467.77,0.000408,60]
[421675436,1778038254000,-500.0,0.00040822,60]
[421675502,1778038255000,-500.0,0.00040822,60]
[421675512,1778038255000,-500.0,0.00040822,60]
[421675504,1778038255000,-500.0,0.00040822,60]
[421675506,1778038255000,-500.0,0.00040822,60]
[421675505,1778038255000,-537.0,0.00040822,60]
[421675501,1778038255000,-500.0,0.00040822,60]
[421675503,1778038255000,-572.0,0.00040822,60]
[421675509,1778038255000,-500.0,0.00040822,60]
[421675518,1778038255000,-572.0,0.00040822,60]
[421675519,1778038255000,-500.0,0.00040822,60]
[421675508,1778038255000,-572.0,0.00040822,60]
[421675515,1778038255000,-500.0,0.00040822,60]
[421675510,1778038255000,-537.0,0.00040822,60]
[421675513,1778038255000,-500.0,0.00040822,60]
[421675521,1778038255000,-537.0,0.00040822,60]
[421675511,1778038255000,-500.0,0.00040822,60]
[421675520,1778038255000,-500.0,0.00040822,60]
[421675516,1778038255000,-500.0,0.00040822,60]
[421675517,1778038255000,-537.0,0.00040822,60]
[421675522,1778038255000,-500.0,0.00040822,60]
[421675523,1778038255000,-500.0,0.00040822,60]
[421675524,1778038255000,-302.27713592,0.00040822,60]
[421675531,1778038255000,-572.0,0.00040822,60]
[421675507,1778038255000,-500.0,0.00040822,60]
[421675472,1778038255000,-500.0,0.00040822,60]
[421675500,1778038255000,-537.0,0.00040822,60]
[421675486,1778038255000,-537.0,0.00040822,60]
[421675499,1778038255000,-500.0,0.00040822,60]
[421675471,1778038255000,-203.08154012,0.00040822,60]
[421675484,1778038255000,-500.0,0.00040822,60]
[421675474,1778038255000,-572.0,0.00040822,60]